[Event "Early-Titled-Tuesday-Blitz-February-13-2024"]
[Site "Chess.com"]
[Date "2024.02.13"]
[Round "9"]
[White "Matibar"]
[Black "Elsa167"]
[Result "0-1"]
[WhiteElo "2763"]
[BlackElo "2907"]
[TimeControl "180+1"]
[EndTime "9:50:30 PST"]
[Termination "Elsa167 won by resignation"]

1. e4 {[%clk 0:03:00.9]} 1... c5 {[%clk 0:02:59.5]} 2. Nf3 {[%clk 0:03:00.5]}
2... e6 {[%clk 0:02:59.7]} 3. d4 {[%clk 0:02:57.5]} 3... cxd4 {[%clk 0:03:00.6]}
4. Nxd4 {[%clk 0:02:58]} 4... Nf6 {[%clk 0:03:01]} 5. Nc3 {[%clk 0:02:57.9]}
5... Nc6 {[%clk 0:03:01.6]} 6. a3 {[%clk 0:02:54.2]} 6... d6 {[%clk 0:02:51.7]}
7. g3 {[%clk 0:02:30.5]} 7... Be7 {[%clk 0:02:45.4]} 8. Bg2 {[%clk 0:02:30.1]}
8... Nxd4 {[%clk 0:02:39]} 9. Qxd4 {[%clk 0:02:30.6]} 9... O-O {[%clk
0:02:37.7]} 10. O-O {[%clk 0:02:30.3]} 10... Qc7 {[%clk 0:02:33.8]} 11. h3
{[%clk 0:01:56.2]} 11... e5 {[%clk 0:02:30.8]} 12. Qd2 {[%clk 0:01:51.1]} 12...
Be6 {[%clk 0:02:28.9]} 13. b3 {[%clk 0:01:51.4]} 13... Rac8 {[%clk 0:02:22.6]}
14. Bb2 {[%clk 0:01:51.9]} 14... a6 {[%clk 0:02:19.3]} 15. a4 {[%clk 0:01:49.7]}
15... h5 {[%clk 0:01:55.6]} 16. Rac1 {[%clk 0:01:45.2]} 16... h4 {[%clk
0:01:55.8]} 17. g4 {[%clk 0:01:43.8]} 17... Nh7 {[%clk 0:01:55.9]} 18. Ne2
{[%clk 0:01:35.3]} 18... Bg5 {[%clk 0:01:54.7]} 19. f4 {[%clk 0:01:35]} 19...
exf4 {[%clk 0:01:53.7]} 20. Nxf4 {[%clk 0:01:35.9]} 20... Nf6 {[%clk 0:01:34.1]}
21. Kh1 {[%clk 0:01:24.8]} 21... Qc5 {[%clk 0:01:17.5]} 22. c4 {[%clk
0:01:19.9]} 22... Rfe8 {[%clk 0:01:13.4]} 23. Rcd1 {[%clk 0:01:11.4]} 23... b5
{[%clk 0:00:54]} 24. axb5 {[%clk 0:01:02.1]} 24... axb5 {[%clk 0:00:54.9]} 25.
Nxe6 {[%clk 0:01:02.1]} 25... Rxe6 {[%clk 0:00:39.8]} 26. Qc3 {[%clk 0:00:55.3]}
26... bxc4 {[%clk 0:00:37.2]} 27. bxc4 {[%clk 0:00:26.3]} 27... Qxc4 {[%clk
0:00:34.6]} 28. Qd4 {[%clk 0:00:09.8]} 28... Qxd4 {[%clk 0:00:23.4]} 29. Rxd4
{[%clk 0:00:10.7]} 29... Rc2 {[%clk 0:00:23]} 30. Rb4 {[%clk 0:00:10.8]} 30...
Nd7 {[%clk 0:00:07]} 31. Bd4 {[%clk 0:00:10.8]} 31... Ne5 {[%clk 0:00:05.6]} 32.
Rb8+ {[%clk 0:00:10.1]} 32... Kh7 {[%clk 0:00:05.8]} 33. Rf5 {[%clk 0:00:07.7]}
33... f6 {[%clk 0:00:04.4]} 34. Rf1 {[%clk 0:00:06.1]} 34... Nc6 {[%clk
0:00:04.2]} 35. e5 {[%clk 0:00:04]} 35... Nxd4 {[%clk 0:00:01.6]} 36. Be4+
{[%clk 0:00:04.1]} 36... g6 {[%clk 0:00:01.9]} 37. Bxc2 {[%clk 0:00:04.2]} 37...
Nxc2 {[%clk 0:00:02.4]} 38. Rb7+ {[%clk 0:00:03.3]} 38... Kh6 {[%clk 0:00:02.4]}
39. exf6 {[%clk 0:00:03.9]} 39... Rxf6 {[%clk 0:00:02.9]} 40. Rd1 {[%clk
0:00:03.5]} 40... Ne3 {[%clk 0:00:02.2]} 41. Re1 {[%clk 0:00:03.6]} 41... Bf4
{[%clk 0:00:02.7]} 42. Rd7 {[%clk 0:00:02.5]} 42... Kg5 {[%clk 0:00:02.6]} 43.
Rd8 {[%clk 0:00:02.4]} 43... d5 {[%clk 0:00:02.4]} 44. Re2 {[%clk 0:00:02.3]}
44... Re6 {[%clk 0:00:02.9]} 45. Kg1 {[%clk 0:00:02.5]} 45... Re4 {[%clk
0:00:03.2]} 46. Rxd5+ {[%clk 0:00:02]} 46... Nxd5 {[%clk 0:00:02.7]} 47. Rxe4
{[%clk 0:00:02.9]} 47... Bg3 {[%clk 0:00:02.1]} 48. Kg2 {[%clk 0:00:01.8]} 48...
Nf4+ {[%clk 0:00:02.7]} 49. Kf3 {[%clk 0:00:01.2]} 49... Nxh3 {[%clk 0:00:03.5]}
50. Rc4 {[%clk 0:00:01.6]} 50... Kh6 {[%clk 0:00:03.6]} 51. Rc5 {[%clk
0:00:02.1]} 51... Ng5+ {[%clk 0:00:03.8]} 52. Kg2 {[%clk 0:00:03]} 52... Ne4
{[%clk 0:00:04.3]} 53. Rc4 {[%clk 0:00:03.3]} 53... Nf6 {[%clk 0:00:04.4]} 54.
Kh3 {[%clk 0:00:03.9]} 54... Nh7 {[%clk 0:00:04.1]} 55. Rc5 {[%clk 0:00:04.1]}
55... Ng5+ {[%clk 0:00:04.6]} 56. Kg2 {[%clk 0:00:05]} 56... Ne6 {[%clk
0:00:05]} 57. Rc6 {[%clk 0:00:04.9]} 57... Nf4+ {[%clk 0:00:04.7]} 58. Kf3
{[%clk 0:00:05.6]} 58... Kg7 {[%clk 0:00:03.7]} 59. Rc7+ {[%clk 0:00:05.9]}
59... Kf6 {[%clk 0:00:04]} 60. Rc6+ {[%clk 0:00:06.4]} 60... Ke5 {[%clk
0:00:04.7]} 61. Rc5+ {[%clk 0:00:06.9]} 61... Kd4 {[%clk 0:00:05.3]} 62. Ra5
{[%clk 0:00:07.1]} 62... Kd3 {[%clk 0:00:04.7]} 63. Ra3+ {[%clk 0:00:07.2]}
63... Kd4 {[%clk 0:00:04.2]} 64. g5 {[%clk 0:00:07.4]} 64... Ke5 {[%clk
0:00:02.5]} 65. Kg4 {[%clk 0:00:07.8]} 65... Nd5 {[%clk 0:00:02.8]} 66. Ra5
{[%clk 0:00:07.4]} 66... Ke6 {[%clk 0:00:03.1]} 67. Ra6+ {[%clk 0:00:07.6]}
67... Bd6 {[%clk 0:00:02.8]} 68. Kxh4 {[%clk 0:00:07.4]} 68... Ne3 {[%clk
0:00:03.2]} 69. Rb6 {[%clk 0:00:06.9]} 69... Ke5 {[%clk 0:00:03.1]} 70. Ra6
{[%clk 0:00:06.6]} 70... Kf4 {[%clk 0:00:01.6]} 71. Ra4+ {[%clk 0:00:06.7]}
71... Kf3 {[%clk 0:00:01.7]} 72. Ra6 {[%clk 0:00:06.6]} 72... Nf5+ {[%clk
0:00:01.7]} 73. Kh3 {[%clk 0:00:07.1]} 73... Kf4 {[%clk 0:00:02.2]} 74. Ra4+
{[%clk 0:00:05.5]} 74... Kxg5 {[%clk 0:00:02.7]} 75. Rg4+ {[%clk 0:00:06.3]}
75... Kf6 {[%clk 0:00:03.1]} 76. Ra4 {[%clk 0:00:06.6]} 76... g5 {[%clk
0:00:03.6]} 77. Kg4 {[%clk 0:00:07]} 77... Nh6+ {[%clk 0:00:04.1]} 78. Kh5
{[%clk 0:00:07.5]} 78... Nf7 {[%clk 0:00:03.8]} 79. Ra6 {[%clk 0:00:07.6]} 79...
Ke6 {[%clk 0:00:02.8]} 80. Kg6 {[%clk 0:00:07.1]} 80... g4 {[%clk 0:00:03.3]}
81. Kh5 {[%clk 0:00:07.2]} 81... g3 {[%clk 0:00:03.9]} 82. Kg4 {[%clk
0:00:07.5]} 82... Nh6+ {[%clk 0:00:03.6]} 83. Kf3 {[%clk 0:00:07.6]} 83... Nf5
{[%clk 0:00:04.2]} 84. Ra4 {[%clk 0:00:07.7]} 84... Kf6 {[%clk 0:00:03.9]} 85.
Kg2 {[%clk 0:00:07.6]} 85... Kg5 {[%clk 0:00:03.8]} 86. Kf3 {[%clk 0:00:07.9]}
86... Nh4+ {[%clk 0:00:03.7]} 87. Ke2 {[%clk 0:00:07.2]} 87... g2 {[%clk
0:00:04.3]} 88. Kf2 {[%clk 0:00:05]} 88... Bc5+ {[%clk 0:00:03.9]} 89. Ke2
{[%clk 0:00:04.3]} 89... g1=Q {[%clk 0:00:04.5]} 90. Rg4+ {[%clk 0:00:04.7]}
90... Qxg4+ {[%clk 0:00:04.5]} 0-1

[Event "Early-Titled-Tuesday-Blitz-February-13-2024"]
[Site "Chess.com"]
[Date "2024.02.13"]
[Round "9"]
[White "jk13"]
[Black "Binary010"]
[Result "1-0"]
[WhiteElo "2703"]
[BlackElo "2893"]
[TimeControl "180+1"]
[EndTime "9:50:40 PST"]
[Termination "jk13 won on time"]

1. e4 {[%clk 0:03:00.9]} 1... c5 {[%clk 0:03:00]} 2. c3 {[%clk 0:03:01.1]} 2...
Nf6 {[%clk 0:02:59.6]} 3. e5 {[%clk 0:03:01.6]} 3... Nd5 {[%clk 0:03:00]} 4. Bc4
{[%clk 0:03:02.2]} 4... Nb6 {[%clk 0:02:58]} 5. Bb3 {[%clk 0:03:02.7]} 5... d6
{[%clk 0:02:55.4]} 6. exd6 {[%clk 0:03:03.6]} 6... Qxd6 {[%clk 0:02:53.3]} 7.
Nf3 {[%clk 0:03:03.9]} 7... c4 {[%clk 0:02:49.9]} 8. Bc2 {[%clk 0:03:03.7]} 8...
Qe6+ {[%clk 0:02:49.5]} 9. Kf1 {[%clk 0:02:59.8]} 9... g6 {[%clk 0:02:38.5]} 10.
h4 {[%clk 0:02:59.4]} 10... Bg7 {[%clk 0:02:33.2]} 11. h5 {[%clk 0:02:59.9]}
11... Nc6 {[%clk 0:02:33]} 12. Na3 {[%clk 0:02:54.7]} 12... a6 {[%clk
0:02:16.8]} 13. d4 {[%clk 0:02:40.9]} 13... cxd3 {[%clk 0:02:13.7]} 14. Qxd3
{[%clk 0:02:37.6]} 14... Qd5 {[%clk 0:02:02.5]} 15. Qe3 {[%clk 0:02:06.6]} 15...
Nc4 {[%clk 0:01:36.4]} 16. Nxc4 {[%clk 0:02:04.7]} 16... Qxc4+ {[%clk
0:01:37.3]} 17. Kg1 {[%clk 0:01:57.2]} 17... Bg4 {[%clk 0:01:26.3]} 18. Bb3
{[%clk 0:01:39.4]} 18... Qb5 {[%clk 0:01:26.2]} 19. hxg6 {[%clk 0:01:18.2]}
19... hxg6 {[%clk 0:01:22.5]} 20. Rxh8+ {[%clk 0:01:19]} 20... Bxh8 {[%clk
0:01:23.4]} 21. Ng5 {[%clk 0:01:15.4]} 21... O-O-O {[%clk 0:00:46.4]} 22. Nxf7
{[%clk 0:01:06.2]} 22... Rd3 {[%clk 0:00:35.9]} 23. Nxh8 {[%clk 0:00:47.2]}
23... Rxe3 {[%clk 0:00:30.6]} 24. Bxe3 {[%clk 0:00:48.1]} 24... Ne5 {[%clk
0:00:22.9]} 25. Bd4 {[%clk 0:00:42.6]} 25... Bf5 {[%clk 0:00:17.2]} 26. Re1
{[%clk 0:00:35.9]} 26... Nc6 {[%clk 0:00:14.7]} 27. Be3 {[%clk 0:00:30.5]} 27...
Qd3 {[%clk 0:00:11.1]} 28. Nf7 {[%clk 0:00:25.8]} 28... Qd7 {[%clk 0:00:05.7]}
29. Ng5 {[%clk 0:00:21]} 29... Ne5 {[%clk 0:00:04.2]} 30. Bc5 {[%clk 0:00:16.1]}
30... Nd3 {[%clk 0:00:02.9]} 31. Rxe7 {[%clk 0:00:16.2]} 31... Qc6 {[%clk
0:00:02.7]} 32. Be3 {[%clk 0:00:13.7]} 32... Kd8 {[%clk 0:00:02.2]} 33. Rg7
{[%clk 0:00:11.8]} 33... Qf6 {[%clk 0:00:02.5]} 34. Nf7+ {[%clk 0:00:10.7]}
34... Kc8 {[%clk 0:00:01.9]} 35. Rg8+ {[%clk 0:00:10]} 35... Kc7 {[%clk
0:00:02.3]} 36. Bd4 {[%clk 0:00:07.6]} 36... Qe7 {[%clk 0:00:01.9]} 37. Ne5
{[%clk 0:00:07.6]} 37... Nxe5 {[%clk 0:00:01.8]} 38. f4 {[%clk 0:00:07.3]} 38...
Qd7 {[%clk 0:00:01.3]} 39. Bxe5+ {[%clk 0:00:06.8]} 39... Kb6 {[%clk 0:00:01.5]}
40. Bd4+ {[%clk 0:00:07.2]} 40... Ka5 {[%clk 0:00:02.1]} 41. Rg7 {[%clk
0:00:07.4]} 41... Qb5 {[%clk 0:00:02.5]} 42. Rc7 {[%clk 0:00:07.2]} 42... b6
{[%clk 0:00:02.4]} 43. a4 {[%clk 0:00:06.5]} 43... Qe2 {[%clk 0:00:02.4]} 44.
Bc4 {[%clk 0:00:06.7]} 44... Qe1+ {[%clk 0:00:02.1]} 45. Kh2 {[%clk 0:00:07.3]}
45... Qh4+ {[%clk 0:00:02.8]} 46. Kg1 {[%clk 0:00:07.9]} 46... Qe1+ {[%clk
0:00:03.3]} 47. Kh2 {[%clk 0:00:07.9]} 47... Qh4+ {[%clk 0:00:03.8]} 48. Kg1
{[%clk 0:00:08.4]} 48... Qxf4 {[%clk 0:00:04.5]} 49. Rc6 {[%clk 0:00:08]} 49...
Qc1+ {[%clk 0:00:04.7]} 50. Kf2 {[%clk 0:00:08.1]} 50... Qf4+ {[%clk 0:00:05]}
51. Kg1 {[%clk 0:00:08]} 51... Qc1+ {[%clk 0:00:03.4]} 52. Bf1 {[%clk
0:00:07.9]} 52... Qxb2 {[%clk 0:00:03.1]} 53. Rxb6 {[%clk 0:00:08.3]} 53... Qxb6
{[%clk 0:00:01.5]} 54. Bxb6+ {[%clk 0:00:08.3]} 54... Kxb6 {[%clk 0:00:02.4]}
55. Kf2 {[%clk 0:00:08.5]} 55... a5 {[%clk 0:00:03.1]} 56. Ke3 {[%clk
0:00:08.7]} 56... Bc2 {[%clk 0:00:03.8]} 57. Bb5 {[%clk 0:00:08.8]} 57... Kc5
{[%clk 0:00:04.5]} 58. g3 {[%clk 0:00:08.8]} 58... Bf5 {[%clk 0:00:04]} 59. c4
{[%clk 0:00:07.7]} 59... Bc2 {[%clk 0:00:03.7]} 60. Kf4 {[%clk 0:00:07.5]} 60...
Kb4 {[%clk 0:00:03.9]} 61. Ke5 {[%clk 0:00:07]} 61... Bxa4 {[%clk 0:00:04.4]}
62. Bxa4 {[%clk 0:00:07.1]} 62... Kxa4 {[%clk 0:00:05.3]} 63. c5 {[%clk
0:00:07.5]} 63... Kb5 {[%clk 0:00:03.6]} 64. Kd6 {[%clk 0:00:08]} 64... a4
{[%clk 0:00:03.5]} 65. c6 {[%clk 0:00:08.9]} 65... a3 {[%clk 0:00:04.1]} 66. c7
{[%clk 0:00:09.8]} 66... a2 {[%clk 0:00:04.8]} 67. c8=Q {[%clk 0:00:10.4]} 67...
a1=Q {[%clk 0:00:05.5]} 68. Qc5+ {[%clk 0:00:10.3]} 68... Ka6 {[%clk 0:00:04.9]}
69. Qc6+ {[%clk 0:00:09.8]} 69... Ka7 {[%clk 0:00:03.7]} 70. Qc7+ {[%clk
0:00:09.8]} 70... Ka6 {[%clk 0:00:03.6]} 71. Qc8+ {[%clk 0:00:09.3]} 71... Ka7
{[%clk 0:00:03.8]} 72. Qd7+ {[%clk 0:00:09.3]} 72... Kb6 {[%clk 0:00:02.5]} 73.
Qc6+ {[%clk 0:00:09.8]} 73... Ka7 {[%clk 0:00:02.9]} 74. Qc5+ {[%clk 0:00:10.7]}
74... Kb7 {[%clk 0:00:02]} 75. Qb5+ {[%clk 0:00:10.8]} 75... Ka7 {[%clk
0:00:02.6]} 76. Qc5+ {[%clk 0:00:10.5]} 76... Kb7 {[%clk 0:00:03]} 77. Qd5+
{[%clk 0:00:11]} 77... Ka7 {[%clk 0:00:03.2]} 78. Qe5 {[%clk 0:00:10.9]} 78...
Qa6+ {[%clk 0:00:02.5]} 79. Ke7 {[%clk 0:00:11.1]} 79... Qb7+ {[%clk 0:00:02.3]}
80. Kf6 {[%clk 0:00:11.2]} 80... Qc6+ {[%clk 0:00:02.8]} 81. Kg5 {[%clk
0:00:11.2]} 81... Kb7 {[%clk 0:00:03.1]} 82. Qg7+ {[%clk 0:00:11.2]} 82... Kc8
{[%clk 0:00:03]} 83. Qxg6 {[%clk 0:00:11.4]} 83... Qc1+ {[%clk 0:00:03.7]} 84.
Kf6 {[%clk 0:00:11.1]} 84... Qc6+ {[%clk 0:00:03.8]} 85. Kg7 {[%clk 0:00:11.6]}
85... Qd7+ {[%clk 0:00:03.6]} 86. Kh6 {[%clk 0:00:11.7]} 86... Qh3+ {[%clk
0:00:04]} 87. Kg7 {[%clk 0:00:12.1]} 87... Qd7+ {[%clk 0:00:04.3]} 88. Kh8
{[%clk 0:00:11.4]} 88... Qh3+ {[%clk 0:00:03.8]} 89. Kg8 {[%clk 0:00:11]} 89...
Kd8 {[%clk 0:00:03.3]} 90. g4 {[%clk 0:00:11.2]} 90... Qb3+ {[%clk 0:00:02.6]}
91. Qf7 {[%clk 0:00:11.3]} 91... Qg3 {[%clk 0:00:02.7]} 92. Qf6+ {[%clk
0:00:11.1]} 92... Kd7 {[%clk 0:00:02.6]} 93. g5 {[%clk 0:00:12]} 93... Qb8+
{[%clk 0:00:02.2]} 94. Kg7 {[%clk 0:00:12.2]} 94... Qg3 {[%clk 0:00:02.5]} 95.
g6 {[%clk 0:00:11.8]} 95... Qg4 {[%clk 0:00:02.2]} 96. Qf7+ {[%clk 0:00:11.8]}
96... Kd6 {[%clk 0:00:02.6]} 97. Kg8 {[%clk 0:00:11.7]} 97... Ke5 {[%clk
0:00:01.7]} 98. g7 {[%clk 0:00:11.4]} 98... Qc8+ {[%clk 0:00:02.4]} 99. Qf8
{[%clk 0:00:11.6]} 99... Qe6+ {[%clk 0:00:03]} 100. Qf7 {[%clk 0:00:11.9]}
100... Qc8+ {[%clk 0:00:03.2]} 101. Kh7 {[%clk 0:00:12.2]} 101... Qh3+ {[%clk
0:00:03.4]} 102. Kg6 {[%clk 0:00:12]} 102... Qg4+ {[%clk 0:00:03.7]} 103. Kh6
{[%clk 0:00:12.5]} 1-0

[Event "Early-Titled-Tuesday-Blitz-February-13-2024"]
[Site "Chess.com"]
[Date "2024.02.13"]
[Round "9"]
[White "BallottiLuca"]
[Black "Witik"]
[Result "1-0"]
[WhiteElo "2388"]
[BlackElo "2652"]
[TimeControl "180+1"]
[EndTime "9:51:40 PST"]
[Termination "BallottiLuca won on time"]

1. d4 {[%clk 0:02:57.5]} 1... Nf6 {[%clk 0:03:00]} 2. c4 {[%clk 0:02:56.3]} 2...
e6 {[%clk 0:03:00.3]} 3. Nc3 {[%clk 0:02:52.7]} 3... Bb4 {[%clk 0:03:00.1]} 4.
Nf3 {[%clk 0:02:50.5]} 4... d5 {[%clk 0:02:59.3]} 5. Bg5 {[%clk 0:02:44.8]} 5...
h6 {[%clk 0:02:47.7]} 6. Bxf6 {[%clk 0:02:43.9]} 6... Qxf6 {[%clk 0:02:48.6]} 7.
e3 {[%clk 0:02:41.9]} 7... c5 {[%clk 0:02:36.4]} 8. cxd5 {[%clk 0:02:38.2]} 8...
exd5 {[%clk 0:02:35.1]} 9. Bb5+ {[%clk 0:02:35.7]} 9... Nc6 {[%clk 0:02:34.5]}
10. O-O {[%clk 0:02:33.6]} 10... Bxc3 {[%clk 0:02:18.1]} 11. bxc3 {[%clk
0:02:34.5]} 11... O-O {[%clk 0:02:17.2]} 12. dxc5 {[%clk 0:02:33.2]} 12... Qxc3
{[%clk 0:02:14.7]} 13. Qxd5 {[%clk 0:02:29.9]} 13... Be6 {[%clk 0:02:14.4]} 14.
Qe4 {[%clk 0:02:27.9]} 14... Qxc5 {[%clk 0:02:06]} 15. Bd3 {[%clk 0:02:27.9]}
15... g6 {[%clk 0:02:01.2]} 16. Qh4 {[%clk 0:02:05.7]} 16... Kg7 {[%clk
0:01:50.3]} 17. Rfc1 {[%clk 0:01:59.9]} 17... Qd6 {[%clk 0:01:29.3]} 18. Be4
{[%clk 0:01:59.2]} 18... Rac8 {[%clk 0:01:25.4]} 19. Rd1 {[%clk 0:01:53.7]}
19... Qa3 {[%clk 0:01:11.3]} 20. Bxc6 {[%clk 0:01:44.6]} 20... Rxc6 {[%clk
0:00:58]} 21. Nd4 {[%clk 0:01:43.1]} 21... Rb6 {[%clk 0:00:55.2]} 22. Nxe6+
{[%clk 0:01:39.2]} 22... Rxe6 {[%clk 0:00:55.1]} 23. Rd7 {[%clk 0:01:26]} 23...
Qb2 {[%clk 0:00:42.2]} 24. Qd4+ {[%clk 0:01:18.8]} 24... Qxd4 {[%clk 0:00:42.1]}
25. Rxd4 {[%clk 0:01:19.7]} 25... Rc8 {[%clk 0:00:39]} 26. Rd2 {[%clk
0:01:03.1]} 26... Rec6 {[%clk 0:00:38.3]} 27. g3 {[%clk 0:01:00.5]} 27... Rc1+
{[%clk 0:00:31.7]} 28. Rxc1 {[%clk 0:01:00.4]} 28... Rxc1+ {[%clk 0:00:32.5]}
29. Kg2 {[%clk 0:01:01.1]} 29... Kf6 {[%clk 0:00:25.4]} 30. Rb2 {[%clk
0:01:01.2]} 30... b6 {[%clk 0:00:24.7]} 31. Kf3 {[%clk 0:01:01.4]} 31... Rc3
{[%clk 0:00:22]} 32. Ke4 {[%clk 0:01:00.4]} 32... Ke6 {[%clk 0:00:20.4]} 33. Kd4
{[%clk 0:00:58.9]} 33... Ra3 {[%clk 0:00:20.9]} 34. e4 {[%clk 0:00:55]} 34...
Ra4+ {[%clk 0:00:20.5]} 35. Ke3 {[%clk 0:00:54.1]} 35... f5 {[%clk 0:00:19.3]}
36. exf5+ {[%clk 0:00:53.5]} 36... gxf5 {[%clk 0:00:18]} 37. f4 {[%clk
0:00:49.5]} 37... Ra3+ {[%clk 0:00:16.1]} 38. Kd4 {[%clk 0:00:47.3]} 38... Kd6
{[%clk 0:00:15.8]} 39. Rc2 {[%clk 0:00:46.1]} 39... Ra4+ {[%clk 0:00:15.7]} 40.
Ke3 {[%clk 0:00:45]} 40... Kd5 {[%clk 0:00:16.3]} 41. Kd3 {[%clk 0:00:38.3]}
41... Ra3+ {[%clk 0:00:16.3]} 42. Ke2 {[%clk 0:00:38.8]} 42... Kd4 {[%clk
0:00:15.1]} 43. Rd2+ {[%clk 0:00:28.5]} 43... Ke4 {[%clk 0:00:11.8]} 44. Rc2
{[%clk 0:00:26.5]} 44... b5 {[%clk 0:00:11]} 45. Rb2 {[%clk 0:00:25.9]} 45... a6
{[%clk 0:00:11]} 46. Rb4+ {[%clk 0:00:26.1]} 46... Kd5 {[%clk 0:00:10.9]} 47.
Rb2 {[%clk 0:00:26.8]} 47... Kd4 {[%clk 0:00:11.2]} 48. Rd2+ {[%clk 0:00:25.7]}
48... Ke4 {[%clk 0:00:11.4]} 49. Rb2 {[%clk 0:00:25.4]} 49... h5 {[%clk
0:00:11.8]} 50. Kf2 {[%clk 0:00:23.2]} 50... Rf3+ {[%clk 0:00:07.3]} 51. Kg2
{[%clk 0:00:22.9]} 51... Ra3 {[%clk 0:00:07.9]} 52. h3 {[%clk 0:00:20.9]} 52...
Kd3 {[%clk 0:00:05.7]} 53. g4 {[%clk 0:00:18.3]} 53... hxg4 {[%clk 0:00:04.9]}
54. hxg4 {[%clk 0:00:18.2]} 54... Ke4 {[%clk 0:00:05.6]} 55. gxf5 {[%clk
0:00:17.3]} 55... Kxf5 {[%clk 0:00:05.8]} 56. Kf2 {[%clk 0:00:16.7]} 56... Kxf4
{[%clk 0:00:05.9]} 57. Ke2 {[%clk 0:00:16.9]} 57... Ke4 {[%clk 0:00:06.6]} 58.
Kd2 {[%clk 0:00:16.3]} 58... Kd4 {[%clk 0:00:07.2]} 59. Kc2 {[%clk 0:00:15.8]}
59... Kc4 {[%clk 0:00:07.4]} 60. Kb1 {[%clk 0:00:15.6]} 60... Rh3 {[%clk
0:00:07.7]} 61. Rg2 {[%clk 0:00:15.4]} 61... b4 {[%clk 0:00:06.9]} 62. Kb2
{[%clk 0:00:14.9]} 62... Kb5 {[%clk 0:00:06.9]} 63. Rg5+ {[%clk 0:00:14.3]}
63... Ka4 {[%clk 0:00:07.4]} 64. Rg2 {[%clk 0:00:15]} 64... a5 {[%clk
0:00:07.6]} 65. Rf2 {[%clk 0:00:14.9]} 65... Rc3 {[%clk 0:00:08.2]} 66. Rg2
{[%clk 0:00:14.4]} 66... Kb5 {[%clk 0:00:08.8]} 67. Rg5+ {[%clk 0:00:13.8]}
67... Rc5 {[%clk 0:00:09.5]} 68. Rg2 {[%clk 0:00:14.2]} 68... a4 {[%clk
0:00:10.3]} 69. Rh2 {[%clk 0:00:14.2]} 69... Re5 {[%clk 0:00:10.6]} 70. Rg2
{[%clk 0:00:14.3]} 70... Rd5 {[%clk 0:00:11.1]} 71. Rh2 {[%clk 0:00:14.6]} 71...
Kc4 {[%clk 0:00:11.2]} 72. Rh4+ {[%clk 0:00:14.4]} 72... Rd4 {[%clk 0:00:11.8]}
73. Rh2 {[%clk 0:00:14.8]} 73... a3+ {[%clk 0:00:12]} 74. Kc2 {[%clk 0:00:14.2]}
74... Re4 {[%clk 0:00:11]} 75. Rg2 {[%clk 0:00:13.7]} 75... Rd4 {[%clk
0:00:11.1]} 76. Rh2 {[%clk 0:00:13.9]} 76... Rg4 {[%clk 0:00:11.1]} 77. Rf2
{[%clk 0:00:13.8]} 77... Rg1 {[%clk 0:00:08.9]} 78. Rf4+ {[%clk 0:00:14]} 78...
Kc5 {[%clk 0:00:09.5]} 79. Rf5+ {[%clk 0:00:13.2]} 79... Kc4 {[%clk 0:00:10]}
80. Rf4+ {[%clk 0:00:13.4]} 80... Kb5 {[%clk 0:00:10.6]} 81. Rf2 {[%clk
0:00:08.5]} 81... Ra1 {[%clk 0:00:08.5]} 82. Kd3 {[%clk 0:00:07.9]} 82... Rb1
{[%clk 0:00:08.9]} 83. Rf5+ {[%clk 0:00:06.2]} 83... Ka4 {[%clk 0:00:09.2]} 84.
Rf8 {[%clk 0:00:05.9]} 84... Rb2 {[%clk 0:00:08.8]} 85. Ra8+ {[%clk 0:00:05.4]}
85... Kb5 {[%clk 0:00:09.4]} 86. Rb8+ {[%clk 0:00:05.9]} 86... Kc5 {[%clk
0:00:09.5]} 87. Rc8+ {[%clk 0:00:06.1]} 87... Kd5 {[%clk 0:00:05.5]} 88. Rc2
{[%clk 0:00:05.3]} 88... Rb1 {[%clk 0:00:02.9]} 89. Rd2 {[%clk 0:00:04]} 89...
Kc5 {[%clk 0:00:02.6]} 90. Rc2+ {[%clk 0:00:04.5]} 90... Kb5 {[%clk 0:00:02.8]}
91. Rc8 {[%clk 0:00:04.4]} 91... Rb2 {[%clk 0:00:02.8]} 92. Rb8+ {[%clk
0:00:04.2]} 92... Ka5 {[%clk 0:00:02.6]} 93. Ra8+ {[%clk 0:00:04.7]} 93... Kb6
{[%clk 0:00:03.2]} 94. Rb8+ {[%clk 0:00:05.6]} 94... Kc7 {[%clk 0:00:03.7]} 95.
Rb5 {[%clk 0:00:03.7]} 95... Kc6 {[%clk 0:00:03.6]} 96. Rb8 {[%clk 0:00:03.3]}
96... Kc5 {[%clk 0:00:04.2]} 97. Rc8+ {[%clk 0:00:03.3]} 97... Kd5 {[%clk
0:00:04.8]} 98. Rc2 {[%clk 0:00:03.9]} 98... Rb1 {[%clk 0:00:04.3]} 99. Rd2
{[%clk 0:00:03.7]} 99... Kc5 {[%clk 0:00:04]} 100. Rc2+ {[%clk 0:00:04.4]}
100... Kb5 {[%clk 0:00:04.2]} 101. Kd2 {[%clk 0:00:04.3]} 101... Rh1 {[%clk
0:00:03.5]} 102. Kd3 {[%clk 0:00:03.7]} 102... Rh3+ {[%clk 0:00:03.6]} 103. Kd2
{[%clk 0:00:04.2]} 103... Rh2+ {[%clk 0:00:04.1]} 104. Kc1 {[%clk 0:00:04.8]}
104... Rh1+ {[%clk 0:00:02.4]} 105. Kd2 {[%clk 0:00:05.2]} 105... Rb1 {[%clk
0:00:02]} 106. Kd3 {[%clk 0:00:04.2]} 106... b3 {[%clk 0:00:02.4]} 107. axb3
{[%clk 0:00:03.8]} 107... Kb4 {[%clk 0:00:03]} 108. Rc4+ {[%clk 0:00:02]} 108...
Kxb3 {[%clk 0:00:02.7]} 109. Rc3+ {[%clk 0:00:02.5]} 109... Kb4 {[%clk
0:00:02.5]} 110. Rc4+ {[%clk 0:00:02.5]} 110... Kb5 {[%clk 0:00:03.1]} 111. Rc2
{[%clk 0:00:02.2]} 111... Ka4 {[%clk 0:00:01.3]} 112. Kc3 {[%clk 0:00:02.3]}
112... Rb8 {[%clk 0:00:01]} 113. Ra2 {[%clk 0:00:02.5]} 1-0

[Event "Early-Titled-Tuesday-Blitz-February-13-2024"]
[Site "Chess.com"]
[Date "2024.02.13"]
[Round "10"]
[White "tusplingher"]
[Black "betta2004"]
[Result "1-0"]
[WhiteElo "2487"]
[BlackElo "2613"]
[TimeControl "180+1"]
[EndTime "9:54:02 PST"]
[Termination "tusplingher won by resignation"]

1. e4 {[%clk 0:03:00.9]} 1... e5 {[%clk 0:02:59]} 2. Nf3 {[%clk 0:03:00.8]} 2...
Nf6 {[%clk 0:02:59.4]} 3. Nxe5 {[%clk 0:02:57.4]} 3... Nc6 {[%clk 0:02:59.7]} 4.
Nxc6 {[%clk 0:02:56.2]} 4... dxc6 {[%clk 0:03:00.6]} 5. Nc3 {[%clk 0:02:49.9]}
5... Bc5 {[%clk 0:03:01.1]} 6. Be2 {[%clk 0:02:47.2]} 6... h5 {[%clk 0:03:01.5]}
7. d3 {[%clk 0:02:44.2]} 7... Ng4 {[%clk 0:03:00.9]} 8. Bxg4 {[%clk 0:02:39.7]}
8... hxg4 {[%clk 0:03:01.8]} 9. Qe2 {[%clk 0:02:36.5]} 9... Qd6 {[%clk
0:02:58.4]} 10. e5 {[%clk 0:02:19.3]} 10... Qd4 {[%clk 0:02:46.1]} 11. Be3
{[%clk 0:02:17.4]} 11... Qb4 {[%clk 0:02:45.8]} 12. Bxc5 {[%clk 0:02:14.3]}
12... Qxb2 {[%clk 0:02:46.1]} 13. Kd2 {[%clk 0:01:57.6]} 13... Rxh2 {[%clk
0:02:45.1]} 14. Rhb1 {[%clk 0:01:49.6]} 1-0